{"text_format":"3","workbook":"xlsx","n_sheets":6,"sheets":["Guidance","ISO 6185-4, Page 1","ISO 6185-4, Page 2","ISO 6185-4, Page 3","INSPECTOR","OFFICE"],"not_rendered":{"images":3,"defined_names":5},"read":"whole","date_system":"1900"}

{"sheet":"Guidance","index":0,"n_rows":34,"n_cols":1,"rows_kept":34,"merged":[[0,0,0,2],[1,0,1,3],[2,0,2,3],[3,0,3,3],[4,0,4,3],[5,0,5,3],[6,0,6,3],[7,0,7,3],[8,0,8,3],[9,0,9,3],[10,0,10,3],[11,0,11,3],[12,0,12,3],[13,0,13,3],[14,0,14,3],[15,0,15,3],[16,0,16,2],[17,0,17,2],[18,0,18,3],[19,0,19,3],[20,0,20,3],[21,0,21,3],[22,0,22,3],[23,0,23,3],[24,0,24,1],[25,0,25,3],[26,0,26,3],[27,0,27,3],[28,0,28,3],[29,0,29,1],[30,0,30,3],[31,0,31,3],[32,0,32,1],[33,0,33,3],[34,0,34,3],[35,0,35,3],[36,0,36,3],[37,0,37,3],[38,0,38,3],[39,0,39,3]]}
[]
[]
["Guidance on using this workbook"]
["Application form and checklist_Inflatable & RIB ISO 6185-4 _Module A1, B, G en250115"]
[]
["When is this workbook applicable?"]
["For the certification of Inflatables and RIBs according to ISO 6185-4 in Module A1, B and G"]
[]
["Who shall fill in the sheets in this workbook?"]
["Each sheet name and on top of each sheet you find a colour indication by whom it shall be filled in:"]
["The manufacturer"]
["The inspector"]
["The IMCI / IMCI (UK) office"]
["Note: the checklists shall be prefilled by the manufacturer but can also be used by the inspector."]
[]
["Which cells shall be fill in?"]
["All lines indicated this colour must be filled in for Module A1, B and G"]
["All lines indicated this colour must only be filled in for Module B and G but not for A1"]
[]
["Anything elso to pay attention to?"]
["The submitted data will appear on the certificate. Therefore, due care shall be taken that the data are the final ones and correct. In case that data are changing after the workbook has been submitted, please contact the inspector and IMCI / IMCI (UK) office."]
[]
["Overview of the workbook with links to the sheets:"]
[]
["Sheets to be filled in by the manufacturer:"]
["ISO 6185-4 Page 1"]
["ISO 6185-4 Page 2"]
["ISO 6185-4 Page 3"]
[]
["Sheets to be filled in by the inspector:"]
["INSPECTOR"]
[]
["Sheets to be filled in by the IMCI / IMCI (UK) office:"]
["OFFICE"]

{"sheet":"ISO 6185-4, Page 1","index":1,"n_rows":57,"n_cols":5,"rows_kept":57,"merged":[[0,0,0,4],[2,0,2,4],[3,0,3,4],[9,2,9,4],[10,2,10,4],[11,2,11,4],[12,2,12,4],[13,2,13,4],[14,2,14,4],[15,2,15,4],[16,2,16,4],[17,2,17,4],[18,2,18,4],[19,2,19,4],[20,2,20,4],[21,2,21,4],[22,2,22,4],[23,2,23,4],[25,0,25,1],[26,1,26,2],[27,1,27,2]]}
[]
[]
["To be filled in by the manufacturer"]
[{"$f":"Guidance!A4","v":"Application form and checklist_Inflatable & RIB ISO 6185-4 _Module A1, B, G en250115"}]
["ISO 6185-4:2011 corr:2014 (EN ISO 6185-4:2018)"]
[null,"CERTIFICATION APPLICATION","FOR  IMCI / IMCI (UK)  USE ONLY"]
[null,"Recreational Craft - Inflatable & RIB - Part 4","  Certificate No.:"]
[null,"Ref.: EN ISO 6185-4:2018"]
[]
[null,"Manufacturer:"]
[null,"Address:"]
[null,"ZIP Code:"]
[null,"City:"]
[null,"Country:"]
[null,"VAT #:"]
[null,"Signatory, Name:"]
[null,"Signatory, Title:"]
[null,"Phone:"]
[null,"Email:"]
[null,"WWW:"]
[null,"Model Year on Watercraft Identification Number (WIN):"]
[null,"Model Name:"]
[null,"Other model names (with identical technical data):"]
[null,"Head of Engineering:"]
[]
["This application is valid for:"]
[null,"Directive 2013/53/EU (RCD II) related to CE marking for EU.",null,"[Yes, No]"]
[null,"Recreational Craft Regulation (RCR) related to UKCA marking for United Kingdom",null,"[Yes, No]"]
[]
[null,"Requirements","(ISO)/{Directive}  reference","Clause","Please"]
[null,null,"if not ISO 6185-4",null,"complete as"]
[{"$nulls":4},"appropriate"]
[]
[1,"Module (A1, B or G)","{Directive}","Art. 20"]
[{"$f":"A34+1","v":2},"Boat category (IX or X)",null,"[Scope]"]
[{"$f":"A35+1","v":3},"Design category (B, C or D)","{Directive}","Annex I"]
[4,"Boat type (inflatable boat INF or rigid inflatable boat RIB)",null,"[3.12]"]
[5,"Engine type (Outboard, Sterndrive, Shaft, Jet, Pod)"]
[6,"Length of the hull (LH) [m]","(8666)"]
[7,"Waterline length (LWL) [m]","(8666)"]
[8,"Beam of the hull (BH) [m]","(8666)"]
[9,"Maximum declared speed of craft (v) [knots]","(12215-5)"]
[10,"Loaded displacement (mLDC) [kg]","(8666)"]
[11,"Maximum load (mL) [kg]","(12217-1)"]
[12,"Crew limit (n)",null,"[7.1]"]
[13,"Maximum rated engine power (Pmax) [kW]",null,"[7.2]"]
[14,"Nominal pressures (inflatable buoyancy tubes) [bar]*",null,"[7.8]"]
[15,"Maximum load for the builders plate (mMBP) [kg]","(14945, 14946)","[7.5]"]
[16,"Total buoyant volume (V) [m³]",null,"[7.6]"]
[17,"Compartmentation, number (N) if inflatable tubes*",null,"[7.7]"]
[18,"Valves comply (if applicable)*",null,"[6.3]"]
[19,"Static stability complies*",null,"[7.4]"]
[20,"Buoyancy requirements are met*",null,"[7.6]"]
[21,"Materials comply",null,"[5]"]
[22,"Conditioning during test kept",null,"[6.1]"]
[23,"Buoyancy tubes and hull fittings",null,"[6.2]"]
[24,"Transom  ","(12215-5, 12215-6)","[6.4]"]

{"sheet":"ISO 6185-4, Page 2","index":2,"n_rows":49,"n_cols":5,"rows_kept":49,"merged":[[0,0,0,4],[1,0,1,4],[2,0,2,4],[3,0,3,4],[4,0,4,4],[5,2,5,4],[6,2,6,4],[7,2,7,4],[8,0,8,4],[9,4,11,4],[40,1,40,4],[41,3,41,4],[42,3,42,4],[43,3,43,4],[44,2,44,4],[45,2,45,4],[46,2,46,4],[47,2,47,4],[48,2,48,4]]}
[]
[]
["To be filled in by the manufacturer"]
[{"$f":"Guidance!A4","v":"Application form and checklist_Inflatable & RIB ISO 6185-4 _Module A1, B, G en250115"}]
[]
[null,"Boat Manufacturer:",{"$f":"IF(ISBLANK('ISO 6185-4, Page 1'!C10),\" \",'ISO 6185-4, Page 1'!C10)","v":" "}]
[null,"Boat Model Name:",{"$f":"IF(ISBLANK('ISO 6185-4, Page 1'!C22),\" \",'ISO 6185-4, Page 1'!C22)","v":" "}]
[null,"WIN Model Year:",{"$f":"IF(ISBLANK('ISO 6185-4, Page 1'!C21),\" \",'ISO 6185-4, Page 1'!C21)","v":" "}]
[]
[null,"Requirements","(ISO)/{Directive}  reference","Clause"," Please complete as appropriate"]
[null,null,"if not ISO 6185-4"]
[]
[{"$f":"'ISO 6185-4, Page 1'!A57+1","v":25},"Hull interior drainage",null,"[6.5]"]
[{"$f":"A13+1","v":26},"Remote steering system (if standard or optional equipment)","(8847, 8848, 10592)","[6.6]"]
[27,"Towing, anchoring and mooring devices","(15084)","[6.7]"]
[28,"Seating and attachment system (if standard or optional equipment)","(14946, 15085)","[6.8]"]
[{"$f":"A16+1","v":29},"Electrical installations (if standard or optional equipment)","(10133, 13297)","[6.9]"]
[30,"Engine and engine spaces","{2}, (9094)","[6.10]"]
[31,"Ventilation of petrol engine and petrol tank compartments (if appl.)","(11105)","[6.11]"]
[32,"Devices for lifting the boat (if applicable)",null,"[6.12]"]
[33,"Fire protection (if applicable)","(9094)","[6.13]"]
[34,"Openings in hull, deck or superstructure","(9093, 12216)","[6.14]"]
[35,"Gas systems","(10239)","[6.15]"]
[36,"Navigational lights","(16180, COLREGS)","[6.16]"]
[37,"Discharge prevention","(8099)","[6.17]"]
[38,"Noise emissions (applicable to inboard eng. w/o integral exhaust)",null,"[6.18]"]
[39,"Maximal maneuvering speed (if applicable)",null,"[7.3]"]
[40,"Strength of the inflatable buoyancy tube",null,"[7.9]"]
[41,"Man overboard prevention and recovery","(150985)","[7.10]"]
[42,"Field of vision from the helm position","(11591)","[7.11]"]
[43,"Provision for (a) liferaft(s)","{2}","[7.12]"]
[44,"Self-bailing",null,"[7.13]"]
[45,"Buoyancy tube attachment strength test",null,"[7.14]"]
[46,"Strength of the rigid structure",null,"[7.15]"]
[47,"Strength of principal fitted accessories",null,"[7.16]"]
[48,"Builder's plate(s)",null,"[8]"]
[49,"Owner's Manual",null,"[9]"]
[50,"Standard equipment provided",null,"[10]"]
[51,"Complies with Annex A (type IX) or Annex B (type X)",null,"[Annex]"]
[]
[null,"Engine package"]
[null,"Engine Type","Combustion, Electrical"]
[null,"Fuel type (if applicable)","Petrol, Diesel, LPG, CNG, other"]
[null,"Drive type","Inboard engine with shaft; Sterndrive engine with integral exhaust; Sterndrive engine without external exhaust; Jet; Pod drive; Outboard"]
[null,"Engine Manufacturer:"]
[null,"Model designation:"]
[null,"Maximum power:"]
[null,"Mass per engine:"]
[null,"Number of engines installed:"]

{"sheet":"ISO 6185-4, Page 3","index":3,"n_rows":55,"n_cols":3,"rows_kept":55,"merged":[[0,0,0,2],[1,0,1,2],[2,0,2,2],[3,0,3,2],[4,0,4,2],[5,1,5,2],[6,1,6,2],[6,4,6,5],[7,1,7,2],[15,0,16,0],[17,0,18,0],[19,0,20,0],[21,0,22,0],[23,0,27,0],[28,0,31,0],[34,0,34,2],[35,0,35,2],[36,0,36,2],[37,0,37,2],[38,0,38,2],[42,1,42,2],[45,0,45,2],[46,0,46,1],[47,0,47,1],[48,1,48,2],[49,0,49,1],[50,0,50,1],[51,1,51,2],[52,0,52,2],[53,0,53,2],[54,0,54,1],[55,0,55,2]]}
[]
[]
["To be filled in by the manufacturer"]
[{"$f":"Guidance!A4","v":"Application form and checklist_Inflatable & RIB ISO 6185-4 _Module A1, B, G en250115"}]
[]
["Boat Manufacturer:",{"$f":"IF(ISBLANK('ISO 6185-4, Page 1'!C10),\" \",'ISO 6185-4, Page 1'!C10)","v":" "}]
["Boat Model Name:",{"$f":"IF(ISBLANK('ISO 6185-4, Page 1'!C22),\" \",'ISO 6185-4, Page 1'!C22)","v":" "}]
["WIN Model Year:",{"$f":"IF(ISBLANK('ISO 6185-4, Page 1'!C21),\" \",'ISO 6185-4, Page 1'!C21)","v":" "}]
[]
["Note:  If boat does not use certified components, the boat manufacturer must enclose"]
["         a filled in component certification application form!"]
[]
["This boat model uses the following components or options [ Annex II ]"]
[]
["Component type","  Manufacturer's model(s)","DoC"]
["Steering helm assembly"]
[]
["Steering wheel"]
[]
["Fuel tank"]
[]
["Fuel hose"]
[]
["Windows, portlights, hatches, deadlights and doors"]
[]
[]
[]
[]
["Ignition Protected Devices"]
[]
[]
[]
["Other, describe"]
[]
["(*) Calculations and/or test reports are attached to this application form for items in line "]
[]
["As the manufacturer or his authorised representative or private importer, I declare under sole responsibility"]
["that the above product(s) to which this declaration relates is in conformity with the referenced requirements."]
["This application has not been lodged with any other notified body / conformity assessment body."]
[]
[null,"Date (yyyy-mm-dd) "]
[]
["Signature:"]
[]
[]
["For IMCI / IMCI (UK) office use only - Application Review"]
["Application accepted for IMCI Note 1                                                                                               [Yes, No] "]
["Date (yyyy-mm-dd) "]
["Clear name and signature:"]
["Application accepted for IMCI (UK) Note 1                                                                                      [Yes, No] "]
["Date (yyyy-mm-dd) "]
["Clear name and signature:"]
["Note 1: this date sets the reference of the applied standards."]
[]
["Comments to application or reason(s) if refused:"]

{"sheet":"INSPECTOR","index":4,"n_rows":24,"n_cols":2,"rows_kept":24,"merged":[[0,0,0,2],[1,0,1,2],[2,0,2,2],[3,0,3,2],[4,0,4,2],[5,1,5,2],[6,1,6,2],[7,1,7,2],[9,0,9,2],[10,0,10,2],[12,0,12,2],[16,0,16,1],[20,0,20,1],[21,0,21,2],[24,0,24,2],[25,0,25,2],[26,0,26,2],[27,0,27,2],[28,0,28,2],[29,0,29,2],[30,0,30,2]]}
[]
[]
["To be filled in by the inspector"]
[{"$f":"Guidance!A4","v":"Application form and checklist_Inflatable & RIB ISO 6185-4 _Module A1, B, G en250115"}]
[]
["Boat Manufacturer:",{"$f":"IF(ISBLANK('ISO 6185-4, Page 1'!C10),\" \",'ISO 6185-4, Page 1'!C10)","v":" "}]
["Boat Model Name:",{"$f":"IF(ISBLANK('ISO 6185-4, Page 1'!C22),\" \",'ISO 6185-4, Page 1'!C22)","v":" "}]
["WIN Model Year:",{"$f":"IF(ISBLANK('ISO 6185-4, Page 1'!C21),\" \",'ISO 6185-4, Page 1'!C21)","v":" "}]
[]
[]
["Inspection Report / Evaluation by IMCI / IMCI (UK) Inspector:"]
[]
["I declare under our sole responsibility that I have not been active for the manufacturer in design, construction, marketing or other activities. The content of the documentation has been checked."]
[]
["Inspection date:","(yyyy-mm-dd)"]
[]
["Inspection place:"]
[]
["Inspector: first name, surname"]
[]
["Inspector: Stamp, Signature:"]
[]
[]
["Comments on the Inspection Report / Evaluation by Inspector:"]

{"sheet":"OFFICE","index":5,"n_rows":42,"n_cols":2,"rows_kept":42,"merged":[[0,0,0,2],[1,0,1,2],[2,0,2,2],[3,0,3,2],[4,0,4,2],[5,1,5,2],[6,1,6,2],[7,1,7,2],[9,0,9,2],[10,1,10,2],[12,1,12,2],[13,0,13,2],[15,0,15,2],[18,0,18,2],[19,0,19,1],[21,0,21,1],[22,0,22,2],[25,0,25,2],[26,0,26,2],[28,0,28,2],[32,0,32,1],[34,0,34,1],[35,0,35,2],[38,0,38,2],[40,0,40,2],[41,0,41,2]]}
[]
[]
["This page is only for IMCI / IMCI (UK) office use"]
[{"$f":"Guidance!A4","v":"Application form and checklist_Inflatable & RIB ISO 6185-4 _Module A1, B, G en250115"}]
[]
["Boat Manufacturer:",{"$f":"IF(ISBLANK('ISO 6185-4, Page 1'!C10),\" \",'ISO 6185-4, Page 1'!C10)","v":" "}]
["Boat Model Name:",{"$f":"IF(ISBLANK('ISO 6185-4, Page 1'!C22),\" \",'ISO 6185-4, Page 1'!C22)","v":" "}]
["WIN Model Year:",{"$f":"IF(ISBLANK('ISO 6185-4, Page 1'!C21),\" \",'ISO 6185-4, Page 1'!C21)","v":" "}]
[]
[]
["Routeing #:"]
[]
["Certificate number:"]
[]
[]
["Inspection Report / Evaluation activity by office staff member(s), if applicable"]
[]
["Inspection Report / Evaluation staff member 1: first name, surname"]
[]
["Date of evaluation (yyyy-mm-dd):"]
[]
["Evaluation staff member: Signature"]
[]
[]
["Comments on evaluation by staff member:"]
[]
[]
[]
["Review activity by office staff member(s)"]
[]
["Review staff member: first name, surname"]
[]
["Date of review (yymmdd):"]
[]
["Review staff member: Signature"]
[]
[]
["Comments on review by staff member:"]
[]
[]
[]
["The certification decision is made by signing and dating the corresponding IMCI certificate"]